[Event "CZE-ch U14 Girls 2020"]
[Site "Kouty nad Desnou"]
[Date "2020.03.08"]
[Round "2.23"]
[White "Macova, Marketa"]
[Black "Rezna, Hedvika"]
[Result "0-1"]
[ECO "C47"]
[WhiteElo "1025"]
[BlackElo "1242"]
[Annotator "NA"]
[PlyCount "138"]
[EventDate "2020.03.07"]
[EventCountry "CZE"]
[SourceTitle "playchess.com"]
[Source "ChessBase"]
[SourceQuality "1"]
[TimeControl "5400+30"]

1. e4 {[%emt 0:00:00]} e5 {[%emt 0:00:00]} 2. Nf3 {[%emt 0:00:00]} Nc6 {[%emt 0:00:00]} 3. d4 {[%emt 0:00:00]} exd4 {[%emt 0:00:00]} 4. Nxd4 {[%emt 0:00:02]} Nf6 {[%emt 0:00:00]} 5. Nc3 {[%emt 0:00:20]} Bb4 {[%emt 0:00:17]} 6. Bg5 {[%emt 0:00:36]} O-O {[%emt 0:03:27]} 7. Bc4 {[%emt 0:04:47]} d6 {[%emt 0:05:48]} 8. O-O {[%emt 0:02:53]} Re8 {[%emt 0:01:49]} 9. Re1 {[%emt 0:01:24]} Bd7 {[%emt 0:02:05]} 10. a3 {[%emt 0:04:06]} Bc5 {[%emt 0:03:01]} 11. Nf5 {[%emt 0:06:47]} Ne5 {[%emt 0:13:26]} 12. Bb3 {[%emt 0:02:10]} Bc6 {[%emt 0:02:28]} 13. Bd5 {[%emt 0:08:43]} Bb6 {[%emt 0:09:17]} 14. h3 {[%emt 0:06:17]} a6 {[%emt 0:02:53]} 15. Qd2 {[%emt 0:02:02]} Ned7 {[%emt 0:07:24]} 16. Bh6 {[%emt 0:10:41]} g6 {[%emt 0:05:14]} 17. Qg5 {[%emt 0:08:10]} Nxd5 {[%emt 0:04:24]} 18. exd5 {[%emt 0:05:32]} Qxg5 {[%emt 0:00:48]} 19. Bxg5 {[%emt 0:00:40]} Bb5 {[%emt 0:01:37]} 20. Nxb5 {[%emt 0:01:54]} axb5 {[%emt 0:01:19]} 21. Ng3 {[%emt 0:02:29]} Kg7 {[%emt 0:13:28]} 22. Kf1 {[%emt 0:01:21]} Bc5 {[%emt 0:03:49]} 23. Ne2 {[%emt 0:02:36]} Re5 {[%emt 0:01:47]} 24. Bf4 {[%emt 0:02:05]} Rxd5 {[%emt 0:00:12]} 25. Nc3 {[%emt 0:00:23]} Rf5 {[%emt 0:00:27]} 26. Bg3 {[%emt 0:01:23]} b4 {[%emt 0:01:23]} 27. axb4 {[%emt 0:01:34]} Rxa1 {[%emt 0:00:21]} 28. Rxa1 {[%emt 0:00:30]} Bxb4 {[%emt 0:00:20]} 29. Ra7 {[%emt 0:02:09]} Nc5 {[%emt 0:04:35]} 30. Nb5 {[%emt 0:02:12]} Ne4 {[%emt 0:01:36]} 31. Bh2 {[%emt 0:01:07]} Rxf2+ {[%emt 0:00:14]} 32. Kg1 {[%emt 0:04:36]} Rxc2 {[%emt 0:01:27]} 33. g3 {[%emt 0:01:32]} Bc5+ {[%emt 0:00:15]} 34. Kh1 {[%emt 0:01:24]} Bxa7 {[%emt 0:00:19]} 35. Nxa7 {[%emt 0:00:46]} Rxb2 {[%emt 0:00:23]} 36. g4 {[%emt 0:02:35]} Nf2+ {[%emt 0:00:36]} 37. Kg1 {[%emt 0:00:27]} Nxh3+ {[%emt 0:00:14]} 38. Kh1 {[%emt 0:00:40]} Nf2+ {[%emt 0:00:17]} 39. Kg1 {[%emt 0:00:34]} Nxg4 {[%emt 0:00:22]} 40. Bg3 {[%emt 0:00:00]} Rc2 {[%emt 0:00:00]} 41. Nb5 {[%emt 0:00:00]} h5 {[%emt 0:00:00]} 42. Nd4 {[%emt 0:00:00]} Ra2 {[%emt 0:00:00]} 43. Nf3 {[%emt 0:00:00]} b5 {[%emt 0:00:00]} 44. Ng5 {[%emt 0:00:00]} b4 {[%emt 0:00:00]} 45. Ne4 {[%emt 0:00:00]} b3 {[%emt 0:00:00]} 46. Nc3 {[%emt 0:00:00]} Ra1+ {[%emt 0:00:00]} 47. Kg2 {[%emt 0:00:00]} b2 {[%emt 0:00:00]} 48. Kf3 {[%emt 0:00:00]} Ra3 {[%emt 0:00:00]} 49. Be1 {[%emt 0:00:00]} Rxc3+ {[%emt 0:00:00]} 50. Bxc3+ {[%emt 0:00:00]} f6 {[%emt 0:00:00]} 51. Bxb2 {[%emt 0:00:00]} Kf7 {[%emt 0:00:00]} 52. Kf4 {[%emt 0:00:00]} Ke6 {[%emt 0:00:00]} 53. Ke4 {[%emt 0:00:00]} d5+ {[%emt 0:00:00]} 54. Kf3 {[%emt 0:00:00]} Ne5+ {[%emt 0:00:00]} 55. Ke3 {[%emt 0:00:00]} h4 {[%emt 0:00:00]} 56. Kf2 {[%emt 0:00:00]} Nd3+ {[%emt 0:00:00]} 57. Kg2 {[%emt 0:00:00]} Nxb2 {[%emt 0:00:00]} 58. Kf3 {[%emt 0:00:00]} d4 {[%emt 0:00:00]} 59. Ke2 {[%emt 0:00:00]} h3 {[%emt 0:00:00]} 60. Kd2 {[%emt 0:00:00]} h2 {[%emt 0:00:00]} 61. Kc2 {[%emt 0:00:00]} h1=Q {[%emt 0:00:00]} 62. Kxb2 {[%emt 0:00:00]} d3 {[%emt 0:00:00]} 63. Kc3 {[%emt 0:00:00]} Kd5 {[%emt 0:00:00]} 64. Kxd3 {[%emt 0:00:00]} Qe4+ {[%emt 0:00:00]} 65. Kc3 {[%emt 0:00:00]} Qd4+ {[%emt 0:00:00]} 66. Kc2 {[%emt 0:00:00]} Kc4 {[%emt 0:00:00]} 67. Kc1 {[%emt 0:00:00]} Qf2 {[%emt 0:00:00]} 68. Kd1 {[%emt 0:00:00]} Kd3 {[%emt 0:00:00]} 69. Kc1 {[%emt 0:00:00]} Qc2# {[%emt 0:00:00]} 0-1

[Event "CZE-ch U14 Girls 2020"]
[Site "Kouty nad Desnou"]
[Date "2020.03.09"]
[Round "3.12"]
[White "Zelbova, Lada"]
[Black "Fizerova, Lucie"]
[Result "0-1"]
[ECO "A85"]
[WhiteElo "1646"]
[BlackElo "1574"]
[Annotator "NA"]
[PlyCount "66"]
[EventDate "2020.03.07"]
[EventCountry "CZE"]
[SourceTitle "playchess.com"]
[Source "ChessBase"]
[SourceQuality "1"]
[TimeControl "5400+30"]

1. d4 {[%emt 0:00:00]} f5 {[%emt 0:00:00]} 2. c4 {[%emt 0:00:00]} e6 {[%emt 0:00:00]} 3. Nc3 {[%emt 0:00:15]} Nf6 {[%emt 0:00:18]} 4. Bg5 {[%emt 0:00:16]} h6 {[%emt 0:03:21]} 5. Bxf6 {[%emt 0:06:19]} Qxf6 {[%emt 0:00:14]} 6. e3 {[%emt 0:06:12]} g6 {[%emt 0:02:12]} 7. Bd3 {[%emt 0:01:23]} Bg7 {[%emt 0:00:32]} 8. Nge2 {[%emt 0:02:26]} a6 {[%emt 0:02:23]} 9. f3 {[%emt 0:02:37]} O-O {[%emt 0:04:38]} 10. Qc2 {[%emt 0:07:27]} Nc6 {[%emt 0:01:43]} 11. a3 {[%emt 0:02:21]} d6 {[%emt 0:02:52]} 12. O-O-O {[%emt 0:06:47]} Ne7 {[%emt 0:03:15]} 13. h4 {[%emt 0:04:38]} c6 {[%emt 0:01:23]} 14. e4 {[%emt 0:14:40]} b5 {[%emt 0:03:02]} 15. Kb1 {[%emt 0:05:03]} Bd7 {[%emt 0:04:54]} 16. g4 {[%emt 0:02:33]} bxc4 {[%emt 0:02:12]} 17. Bxc4 {[%emt 0:00:20]} d5 {[%emt 0:00:09]} 18. Ba2 {[%emt 0:07:57]} fxe4 {[%emt 0:09:32]} 19. fxe4 {[%emt 0:02:22]} Qf3 {[%emt 0:05:28]} 20. Rhg1 {[%emt 0:06:52]} Qf2 {[%emt 0:02:28]} 21. Rg3 {[%emt 0:02:21]} Rf3 {[%emt 0:02:24]} 22. Rdg1 {[%emt 0:02:52]} Rxg3 {[%emt 0:01:21]} 23. Rxg3 {[%emt 0:00:21]} Bxd4 {[%emt 0:00:30]} 24. Nd1 {[%emt 0:09:46]} Qf6 {[%emt 0:01:49]} 25. exd5 {[%emt 0:01:19]} exd5 {[%emt 0:02:47]} 26. Qb3 {[%emt 0:00:14]} Be5 {[%emt 0:04:02]} 27. Rf3 {[%emt 0:02:40]} Qg7 {[%emt 0:01:35]} 28. Qb7 {[%emt 0:00:44]} Rd8 {[%emt 0:01:08]} 29. Qxa6 {[%emt 0:00:48]} Bxg4 {[%emt 0:00:28]} 30. Rf2 {[%emt 0:01:03]} Rb8 {[%emt 0:01:15]} 31. Qa7 {[%emt 0:01:46]} Nf5 {[%emt 0:06:23]} 32. Qxg7+ {[%emt 0:00:51]} Kxg7 {[%emt 0:00:23]} 33. Kc2 {[%emt 0:00:37]} Bxe2 {[%emt 0:00:16]} 0-1

[Event "CZE-ch U14 Girls 2020"]
[Site "Kouty nad Desnou"]
[Date "2020.03.09"]
[Round "3.13"]
[White "Markova, Karolina"]
[Black "Trasakova, Adela"]
[Result "1/2-1/2"]
[ECO "B12"]
[WhiteElo "1497"]
[BlackElo "1639"]
[Annotator "NA RC"]
[PlyCount "96"]
[EventDate "2020.03.07"]
[EventCountry "CZE"]
[SourceTitle "playchess.com"]
[Source "ChessBase"]
[SourceQuality "1"]
[TimeControl "5400+30"]

1. e4 {[%emt 0:00:00]} c6 {[%emt 0:00:00]} 2. d4 {[%emt 0:00:00]} d5 {[%emt 0:00:00]} 3. e5 {[%emt 0:00:00]} c5 {[%emt 0:00:00]} 4. c3 {[%emt 0:00:09]} Nc6 {[%emt 0:00:44]} 5. Ne2 {[%emt 0:00:24]} cxd4 {[%emt 0:01:53]} 6. cxd4 {[%emt 0:07:34]} Bg4 {[%emt 0:04:30]} 7. f3 {[%emt 0:01:23]} Bf5 {[%emt 0:02:55]} 8. Ng3 {[%emt 0:02:33]} Bxb1 {[%emt 0:03:31]} 9. Rxb1 {[%emt 0:00:20]} e6 {[%emt 0:00:44]} 10. Be2 {[%emt 0:08:21]} Qa5+ {[%emt 0:03:51]} 11. Bd2 {[%emt 0:03:26]} Bb4 {[%emt 0:01:45]} 12. a3 {[%emt 0:14:26]} Bxd2+ {[%emt 0:02:01]} 13. Qxd2 {[%emt 0:00:34]} Qxd2+ {[%emt 0:00:33]} 14. Kxd2 {[%emt 0:00:06]} Nxd4 {[%emt 0:00:45]} 15. b4 {[%emt 0:06:21]} Nxe2 {[%emt 0:02:23]} 16. Nxe2 {[%emt 0:00:25]} Ne7 {[%emt 0:03:10]} 17. f4 {[%emt 0:04:21]} Kd7 {[%emt 0:03:54]} 18. Rhc1 {[%emt 0:02:55]} Rhc8 {[%emt 0:03:23]} 19. Nd4 {[%emt 0:04:32]} Rxc1 {[%emt 0:07:15]} 20. Rxc1 {[%emt 0:01:00]} Rc8 {[%emt 0:01:17]} 21. Rxc8 {[%emt 0:02:53]} Nxc8 {[%emt 0:01:19]} 22. g4 {[%emt 0:01:18]} g6 {[%emt 0:03:15]} 23. Nf3 {[%emt 0:04:59]} Ke7 {[%emt 0:05:28]} 24. Ng5 {[%emt 0:12:12]} h6 {[%emt 0:02:41]} 25. Nh7 {[%emt 0:04:30]} Nb6 {[%emt 0:02:00]} 26. Ke2 {[%emt 0:02:51]} Nc4 {[%emt 0:02:32]} 27. a4 {[%emt 0:00:24]} a5 {[%emt 0:03:21]} 28. bxa5 {[%emt 0:01:03]} Nxa5 {[%emt 0:00:44]} 29. Nf6 {[%emt 0:00:25]} Kf8 {[%emt 0:01:49]} 30. Nd7+ {[%emt 0:00:30]} Kg7 {[%emt 0:01:11]} 31. Nc5 {[%emt 0:00:56]} b6 {[%emt 0:03:56]} 32. Nd7 {[%emt 0:00:21]} Nc4 {[%emt 0:00:41]} 33. h4 {[%emt 0:01:39]} Kg8 {[%emt 0:06:06]} 34. g5 {[%emt 0:01:30]} h5 {[%emt 0:06:34]} 35. Kf3 {[%emt 0:05:33]} Kg7 {[%emt 0:02:24]} 36. Ke2 {[%emt 0:00:43]} d4 {[%emt 0:05:06]} 37. Kd3 {[%emt 0:05:20]} Nb2+ {[%emt 0:01:26]} 38. Kxd4 {[%emt 0:00:13]} Nxa4 {[%emt 0:00:33]} 39. Kc4 {[%emt 0:00:28]} b5+ {[%emt 0:02:24]} 40. Kb4 {[%emt 0:00:00]} Nb2 {[%emt 0:00:00]} 41. Nc5 {[%emt 0:00:00]} Nd1 {[%emt 0:00:00]} 42. Nd3 {[%emt 0:00:00]} Ne3 {[%emt 0:00:00]} 43. Ne1 {[%emt 0:00:00]} Nd5+ {[%emt 0:00:00]} 44. Kxb5 {[%emt 0:00:00]} Nxf4 {[%emt 0:00:00]} 45. Kc6 {[%emt 0:00:00]} Kf8 {[%emt 0:00:00]} 46. Kd7 {[%emt 0:00:00]} Nd5 {[%emt 0:00:00]} 47. Nf3 {[%emt 0:00:00]} Ne3 {[%emt 0:00:00]} 48. Kd8 {[%emt 0:00:00]} Nf5 {[%emt 0:00:00]} 1/2-1/2

[Event "CZE-ch U14 Girls 2020"]
[Site "Kouty nad Desnou"]
[Date "2020.03.09"]
[Round "3.14"]
[White "Pejrimovska, Viola Ruby"]
[Black "Martinkova, Magdalena"]
[Result "0-1"]
[ECO "C45"]
[WhiteElo "1600"]
[BlackElo "1473"]
[Annotator "NA"]
[PlyCount "52"]
[EventDate "2020.03.07"]
[EventCountry "CZE"]
[SourceTitle "playchess.com"]
[Source "ChessBase"]
[SourceQuality "1"]
[TimeControl "5400+30"]

1. e4 {[%emt 0:00:00]} e5 {[%emt 0:00:00]} 2. Nf3 {[%emt 0:00:00]} Nc6 {[%emt 0:00:00]} 3. d4 {[%emt 0:00:03]} exd4 {[%emt 0:00:00]} 4. Nxd4 {[%emt 0:00:21]} Nf6 {[%emt 0:00:12]} 5. Nxc6 {[%emt 0:00:25]} bxc6 {[%emt 0:00:18]} 6. e5 {[%emt 0:00:20]} Qe7 {[%emt 0:03:27]} 7. Qe2 {[%emt 0:01:23]} Nd5 {[%emt 0:01:08]} 8. c4 {[%emt 0:01:33]} Ba6 {[%emt 0:02:48]} 9. b3 {[%emt 0:00:24]} Qc5 {[%emt 0:10:56]} 10. Qb2 {[%emt 0:24:23]} Nb6 {[%emt 0:07:37]} 11. Be3 {[%emt 0:03:52]} Qa5+ {[%emt 0:04:10]} 12. Nc3 {[%emt 0:09:56]} Bb4 {[%emt 0:08:48]} 13. Bd2 {[%emt 0:04:27]} Qxe5+ {[%emt 0:02:57]} 14. Be2 {[%emt 0:00:14]} O-O {[%emt 0:05:34]} 15. O-O {[%emt 0:01:41]} d5 {[%emt 0:06:20]} 16. Bf3 {[%emt 0:03:48]} Bd6 {[%emt 0:05:29]} 17. g3 {[%emt 0:00:58]} dxc4 {[%emt 0:03:56]} 18. Bxc6 {[%emt 0:02:09]} Rab8 {[%emt 0:01:15]} 19. Rfe1 {[%emt 0:05:39]} Qf6 {[%emt 0:03:19]} 20. Qc2 {[%emt 0:11:15]} Bc5 {[%emt 0:02:52]} 21. Bg2 {[%emt 0:22:14]} Bxf2+ {[%emt 0:01:21]} 22. Kh1 {[%emt 0:00:10]} Bxe1 {[%emt 0:01:03]} 23. Rxe1 {[%emt 0:00:13]} cxb3 {[%emt 0:01:02]} 24. axb3 {[%emt 0:00:20]} Rfe8 {[%emt 0:01:12]} 25. Rf1 {[%emt 0:00:17]} Bxf1 {[%emt 0:00:12]} 26. Bxf1 {[%emt 0:00:07]} Qxf1# {[%emt 0:00:05]} 0-1

[Event "CZE-ch U14 Girls 2020"]
[Site "Kouty nad Desnou"]
[Date "2020.03.09"]
[Round "3.15"]
[White "Vankova, Marie"]
[Black "Sulcova, Tereza Radmila"]
[Result "0-1"]
[ECO "C06"]
[WhiteElo "1367"]
[BlackElo "1555"]
[Annotator "NA RC"]
[PlyCount "64"]
[EventDate "2020.03.07"]
[EventCountry "CZE"]
[SourceTitle "playchess.com"]
[Source "ChessBase"]
[SourceQuality "1"]
[TimeControl "5400+30"]

1. e4 {[%emt 0:00:00]} e6 {[%emt 0:00:00]} 2. d4 {[%emt 0:00:00]} d5 {[%emt 0:00:00]} 3. Nd2 {[%emt 0:00:00]} Nf6 {[%emt 0:00:15]} 4. e5 {[%emt 0:00:00]} Nfd7 {[%emt 0:00:13]} 5. Bd3 {[%emt 0:00:26]} c5 {[%emt 0:00:16]} 6. c3 {[%emt 0:00:08]} Nc6 {[%emt 0:00:15]} 7. Ne2 {[%emt 0:00:22]} Qb6 {[%emt 0:00:29]} 8. Nf3 {[%emt 0:00:34]} f6 {[%emt 0:01:36]} 9. exf6 {[%emt 0:02:00]} Nxf6 {[%emt 0:00:08]} 10. O-O {[%emt 0:01:25]} Bd6 {[%emt 0:01:07]} 11. a3 {[%emt 0:03:16]} a5 {[%emt 0:04:06]} 12. b3 {[%emt 0:09:27]} O-O {[%emt 0:01:40]} 13. Qc2 {[%emt 0:03:47]} e5 {[%emt 0:04:13]} 14. dxe5 {[%emt 0:01:52]} Nxe5 {[%emt 0:01:23]} 15. Nxe5 {[%emt 0:02:25]} Bxe5 {[%emt 0:00:49]} 16. Bg5 {[%emt 0:01:37]} Kh8 {[%emt 0:09:00]} 17. Rab1 {[%emt 0:07:27]} Bd7 {[%emt 0:24:01]} 18. Nf4 {[%emt 0:05:43]} Qd6 {[%emt 0:07:36]} 19. Qd2 {[%emt 0:06:01]} c4 {[%emt 0:04:28]} 20. Bc2 {[%emt 0:01:36]} cxb3 {[%emt 0:04:46]} 21. Rxb3 {[%emt 0:02:48]} Ba4 {[%emt 0:00:29]} 22. Rb2 {[%emt 0:01:37]} Bxc2 {[%emt 0:00:08]} 23. Rxc2 {[%emt 0:00:15]} Ne4 {[%emt 0:00:23]} 24. Qxd5 {[%emt 0:00:40]} Nxg5 {[%emt 0:00:53]} 25. Qxd6 {[%emt 0:01:16]} Bxd6 {[%emt 0:00:20]} 26. Nd5 {[%emt 0:00:46]} Rf5 {[%emt 0:05:32]} 27. Ne3 {[%emt 0:00:43]} Rf7 {[%emt 0:02:03]} 28. a4 {[%emt 0:00:30]} Rc8 {[%emt 0:00:21]} 29. Rd1 {[%emt 0:00:18]} Bc5 {[%emt 0:01:09]} 30. Rcd2 {[%emt 0:00:53]} h6 {[%emt 0:01:02]} 31. Rd3 {[%emt 0:00:39]} Ne4 {[%emt 0:00:40]} 32. f3 {[%emt 0:00:26]} Bxe3+ {[%emt 0:00:46]} 0-1

[Event "CZE-ch U14 Girls 2020"]
[Site "Kouty nad Desnou"]
[Date "2020.03.09"]
[Round "3.16"]
[White "Vavrinkova, Marie"]
[Black "Voriskova, Anna"]
[Result "0-1"]
[ECO "A48"]
[WhiteElo "1240"]
[BlackElo "1820"]
[Annotator "NA RC"]
[PlyCount "58"]
[EventDate "2020.03.07"]
[EventCountry "CZE"]
[SourceTitle "playchess.com"]
[Source "ChessBase"]
[SourceQuality "1"]
[TimeControl "5400+30"]

{[%evp 8,44,50,0,20,6,0,0,6,8,-12,32767,32767,32767,32767,32767,32767,-133,-78,-81,0,6,55,-10,18,-33,-8,-84,-88,-98,-99,-708,-764,-1026,-554,-1227,-409,-402,-436]} 1. d4 {[%emt 0:00:00]} Nf6 {[%emt 0:00:00]} 2. Nf3 {[%emt 0:00:00]} g6 {[%emt 0:06:21]} 3. Bf4 {[%emt 0:01:51]} c5 {[%emt 0:00:44]} 4. e3 {[%emt 0:02:18]} b6 {[%emt 0:00:54]} 5. Bd3 {[%emt 0:03:48]} Bg7 {[%emt 0:00:39]} 6. c3 {[%emt 0:01:07]} Bb7 {[%emt 0:00:12]} 7. Nbd2 {[%emt 0:01:41]} O-O {[%emt 0:00:59]} 8. h3 {[%emt 0:01:21]} d6 {[%emt 0:01:18]} 9. O-O {[%emt 0:02:06]} Nbd7 {[%emt 0:00:36]} 10. Qe2 {[%emt 0:01:08] A48: 1 d4 Nf6 2 Nf3 g6: Torre, London and Colle Systems.} Re8 {[%emt 0:05:12]} 11. Bh2 {[%emt 0:02:38]} e5 {[%emt 0:06:57] [#]} 12. e4 $146 {[%emt 0:05:23]} ({Predecessor:} 12. dxe5 $11 Nxe5 (12... dxe5 13. e4 Nh5 14. Ba6 Bxa6 15. Bf4 exf4 16. Qxa6 Qc8 17. Rad1 {0-1 (17) Sjugirov,S (2663)-Bai,J (2579) Qinhuangdao 2018}) 13. Nxe5 dxe5 14. Bb5) 12... cxd4 {[%emt 0:03:59]} ({Better is} 12... exd4 13. cxd4 {[#]} Nxe4 $1 {[%mdl 512]} 14. Nxe4 d5 15. Nf6+ Nxf6) 13. cxd4 {[%emt 0:00:48]} Qe7 {[%emt 0:04:16]} (13... exd4 $17 14. Bxd6 Nc5 15. Bxc5 bxc5) 14. Rfe1 {[%emt 0:02:34]} Nh5 {[%emt 0:08:16]} 15. dxe5 {[%emt 0:03:43]} ({White should play} 15. Rac1 $14) 15... Nxe5 {[%emt 0:01:31]} 16. Bxe5 {[%emt 0:01:24]} dxe5 {[%emt 0:01:15]} 17. Bb5 {[%emt 0:01:41]} (17. g3 $1 $11) 17... Nf4 {[%emt 0:03:00]} 18. Qe3 {[%emt 0:02:20]} Red8 {[%emt 0:01:58]} 19. Nc4 $2 {[%emt 0:01:47]} (19. Qb3 $15) 19... Rd3 {[%emt 0:03:44]} 20. Qc1 {[%emt 0:01:39]} Rc8 {[%emt 0:02:27] Remove Defender} 21. Qb1 {[%emt 0:02:44] [#]} a6 {[%emt 0:03:49]} (21... Rxf3 $142 $1 {[%mdl 512]} 22. Qd1 (22. gxf3 Qg5+) 22... Rd3) 22. Ncxe5 {[%emt 0:03:52]} Rdd8 $19 {[%emt 0:00:33]} ({Not} 22... Rxf3 23. Nxf3 axb5 24. a4 $19) 23. Bxa6 {[%emt 0:02:49]} Bxa6 {[%emt 0:00:17]} 24. Ng4 {[%emt 0:00:35]} h5 {[%emt 0:02:09]} 25. Ne3 {[%emt 0:00:37]} Bd3 {[%emt 0:00:17]} 26. Qd1 {[%emt 0:00:45]} Bxe4 {[%emt 0:00:17]} 27. Qa4 {[%emt 0:00:21]} Nxh3+ {[%emt 0:00:56]} 28. gxh3 {[%emt 0:00:25]} Bxf3 {[%emt 0:00:22]} 29. Qf4 {[%emt 0:01:53]} Qf6 {[%emt 0:00:52]} 0-1

[Event "CZE-ch U14 Girls 2020"]
[Site "Kouty nad Desnou"]
[Date "2020.03.09"]
[Round "3.17"]
[White "Glasbergerova, Lucie"]
[Black "Smajzrova, Dominika"]
[Result "1-0"]
[ECO "C42"]
[WhiteElo "1203"]
[BlackElo "1487"]
[Annotator "NA"]
[PlyCount "63"]
[EventDate "2020.03.07"]
[EventCountry "CZE"]
[SourceTitle "playchess.com"]
[Source "ChessBase"]
[SourceQuality "1"]
[TimeControl "5400+30"]

1. e4 {[%emt 0:00:00]} e5 {[%emt 0:00:00]} 2. Nf3 {[%emt 0:00:00]} Nf6 {[%emt 0:00:00]} 3. Nxe5 {[%emt 0:01:39]} d6 {[%emt 0:00:02]} 4. Nxf7 {[%emt 0:05:12]} Kxf7 {[%emt 0:01:17]} 5. d4 {[%emt 0:00:43]} Nxe4 {[%emt 0:02:23]} 6. Qh5+ {[%emt 0:00:20]} Ke7 {[%emt 0:02:31]} 7. Qe2 {[%emt 0:04:18]} d5 {[%emt 0:04:01]} 8. Bg5+ {[%emt 0:00:20]} Ke8 {[%emt 0:02:51]} 9. Bxd8 {[%emt 0:00:09]} Kxd8 {[%emt 0:00:06]} 10. Nc3 {[%emt 0:00:40]} Bb4 {[%emt 0:00:47]} 11. Qf3 {[%emt 0:02:48]} Rf8 {[%emt 0:06:18]} 12. Qe3 {[%emt 0:08:46]} Re8 {[%emt 0:02:30]} 13. O-O-O {[%emt 0:09:44]} Nxc3 {[%emt 0:06:44]} 14. Qg5+ {[%emt 0:01:44]} Be7 {[%emt 0:03:20]} 15. Qxg7 {[%emt 0:04:39]} Nxd1 {[%emt 0:03:05]} 16. Kxd1 {[%emt 0:00:19]} Rf8 {[%emt 0:04:16]} 17. f3 {[%emt 0:02:57]} Bf5 {[%emt 0:02:19]} 18. c4 {[%emt 0:15:35]} c6 {[%emt 0:04:28]} 19. cxd5 {[%emt 0:02:33]} cxd5 {[%emt 0:02:04]} 20. Qe5 {[%emt 0:00:14]} Nd7 {[%emt 0:05:07]} 21. Qxd5 {[%emt 0:01:38]} Rb8 {[%emt 0:00:29]} 22. Bb5 {[%emt 0:01:51]} Rf6 {[%emt 0:03:40]} 23. Re1 {[%emt 0:01:04]} Rd6 {[%emt 0:03:14]} 24. Qxf5 {[%emt 0:00:48]} Rxd4+ {[%emt 0:02:27]} 25. Kc1 {[%emt 0:01:05]} Rc8+ {[%emt 0:00:52]} 26. Kb1 {[%emt 0:00:08]} Rc5 {[%emt 0:01:51]} 27. Qxh7 {[%emt 0:01:59]} Bf8 {[%emt 0:05:06]} 28. Bxd7 {[%emt 0:02:28]} Rxd7 {[%emt 0:00:15]} 29. Qh4+ {[%emt 0:00:45]} Kc7 {[%emt 0:00:57]} 30. Qf4+ {[%emt 0:01:30]} Bd6 {[%emt 0:00:37]} 31. Qd4 {[%emt 0:01:21]} Be7 {[%emt 0:01:30]} 32. Rxe7 {[%emt 0:00:33]} 1-0

[Event "CZE-ch U14 Girls 2020"]
[Site "Kouty nad Desnou"]
[Date "2020.03.09"]
[Round "3.18"]
[White "Spacilova, Klara"]
[Black "Havelkova, Beata"]
[Result "1-0"]
[ECO "B76"]
[WhiteElo "1188"]
[BlackElo "1468"]
[Annotator "NA RC"]
[PlyCount "49"]
[EventDate "2020.03.07"]
[EventCountry "CZE"]
[SourceTitle "playchess.com"]
[Source "ChessBase"]
[SourceQuality "1"]
[TimeControl "5400+30"]

1. e4 {[%emt 0:00:00]} c5 {[%emt 0:00:00]} 2. Nf3 {[%emt 0:00:00]} d6 {[%emt 0:00:00]} 3. d4 {[%emt 0:00:00]} cxd4 {[%emt 0:00:00]} 4. Nxd4 {[%emt 0:00:00]} Nf6 {[%emt 0:00:00]} 5. Nc3 {[%emt 0:00:09]} g6 {[%emt 0:00:03]} 6. Be3 {[%emt 0:00:48]} Bg7 {[%emt 0:00:18]} 7. f3 {[%emt 0:00:10]} O-O {[%emt 0:00:44]} 8. Qd2 {[%emt 0:00:09]} Nc6 {[%emt 0:00:15]} 9. O-O-O {[%emt 0:00:09]} Nxd4 {[%emt 0:02:28]} 10. Bxd4 {[%emt 0:00:12]} Be6 {[%emt 0:00:50]} 11. Kb1 {[%emt 0:01:03]} a6 {[%emt 0:06:20]} 12. g4 {[%emt 0:00:46]} b5 {[%emt 0:01:01]} 13. h4 {[%emt 0:00:36]} b4 {[%emt 0:04:30]} 14. Nd5 {[%emt 0:00:14]} a5 {[%emt 0:05:45]} 15. h5 {[%emt 0:01:31]} Bxd5 {[%emt 0:06:11]} 16. exd5 {[%emt 0:00:11]} Qc7 {[%emt 0:01:59]} 17. Rc1 {[%emt 0:01:12]} Rfb8 {[%emt 0:01:39]} 18. hxg6 {[%emt 0:04:00]} fxg6 {[%emt 0:02:01]} 19. g5 {[%emt 0:02:07]} Nh5 {[%emt 0:02:10]} 20. Bxg7 {[%emt 0:00:49]} Kxg7 {[%emt 0:00:39]} 21. Qd4+ {[%emt 0:02:43]} Kg8 {[%emt 0:02:11]} 22. Bh3 {[%emt 0:03:43]} Ng7 {[%emt 0:02:14]} 23. Be6+ {[%emt 0:01:54]} Nxe6 {[%emt 0:01:05]} 24. dxe6 {[%emt 0:00:09]} Qc8 {[%emt 0:05:51]} 25. Rxh7 {[%emt 0:01:47]} 1-0